fUSD/lending_fUSD_20241118
["ID","MTS","AMOUNT","RATE_DAILY","PERIOD"]
[342557979,1731964232106,-500.0,9.999e-05,2]
[342557981,1731964232114,-500.0,9.999e-05,2]
[342557983,1731964232123,-181.34842892,9.999e-05,2]
[342557985,1731964232132,-15426.558,9.999e-05,2]
[342557987,1731964232142,-500.0,9.999e-05,2]
[342557989,1731964232152,-559.21,9.999e-05,2]
[342557991,1731964232161,-1500.0,9.999e-05,2]
[342557994,1731964232170,-500.0,9.999e-05,2]
[342557997,1731964232179,-500.0,9.999e-05,2]
[342558000,1731964232188,-500.0,9.999e-05,2]
[342558002,1731964232201,-500.0,9.999e-05,2]
[342558004,1731964232210,-500.0,9.999e-05,2]
[342558006,1731964232219,-500.0,9.999e-05,2]
[342558008,1731964232229,-161.75,9.999e-05,2]
[342558010,1731964232238,-858.93,9.999e-05,2]
[342558012,1731964232248,-858.93,9.999e-05,2]
[342558014,1731964232257,-858.93,9.999e-05,2]
[342558016,1731964232266,-858.93,9.999e-05,2]
[342558018,1731964232275,-858.93,9.999e-05,2]
[342558020,1731964232284,-858.93,9.999e-05,2]
[342558022,1731964232294,-858.93,9.999e-05,2]
[342558024,1731964232303,-858.93,9.999e-05,2]
[342558026,1731964232313,-858.93,9.999e-05,2]
[342558028,1731964232322,-858.93,9.999e-05,2]
[342558030,1731964232331,-858.93,9.999e-05,2]
[342558032,1731964232340,-858.93,9.999e-05,2]
[342558033,1731964232353,-858.93,9.999e-05,2]
[342558035,1731964232363,-858.93,9.999e-05,2]
[342558037,1731964232372,-858.93,9.999e-05,2]
[342558039,1731964232381,-858.93,9.999e-05,2]
[342558041,1731964232391,-858.93,9.999e-05,2]
[342558043,1731964232400,-858.93,9.999e-05,2]
[342558045,1731964232409,-858.93,9.999e-05,2]
[342558047,1731964232418,-858.93,9.999e-05,2]
[342558049,1731964232430,-858.93,9.999e-05,2]
[342558051,1731964232441,-858.93,9.999e-05,2]
[342558053,1731964232456,-858.93,9.999e-05,2]
[342558055,1731964232465,-859.15,9.999e-05,2]
[342558057,1731964232475,-500.0,9.999e-05,2]
[342558059,1731964232484,-500.0,9.999e-05,2]
[342558061,1731964232493,-500.0,9.999e-05,2]
[342558063,1731964232502,-500.0,9.999e-05,2]
[342558065,1731964232512,-500.0,9.999e-05,2]
[342558067,1731964232521,-500.0,9.999e-05,2]
[342558069,1731964232531,-500.0,9.999e-05,2]
[342558071,1731964232540,-500.0,9.999e-05,2]
[342558073,1731964232549,-500.0,9.999e-05,2]
[342558075,1731964232558,-500.0,9.999e-05,2]
[342558077,1731964232568,-500.0,9.999e-05,2]
[342558079,1731964232578,-500.0,9.999e-05,2]
[342558081,1731964232587,-500.0,9.999e-05,2]
[342558083,1731964232596,-500.0,9.999e-05,2]
[342558085,1731964232605,-500.0,9.999e-05,2]
[342558087,1731964232614,-500.0,9.999e-05,2]
[342558089,1731964232623,-500.0,9.999e-05,2]
[342558091,1731964232631,-500.0,9.999e-05,2]
[342558093,1731964232641,-500.0,9.999e-05,2]
[342558095,1731964232650,-443.51,9.999e-05,2]
[342558097,1731964232659,-170.2324807,9.999e-05,2]
[342558099,1731964232668,-500.0,9.999e-05,2]
[342558101,1731964232677,-441.41471927,9.999e-05,2]
[342558103,1731964232686,-500.0,9.999e-05,2]
[342558105,1731964232698,-500.0,9.999e-05,2]
[342558107,1731964232709,-500.0,9.999e-05,2]
[342558109,1731964232718,-500.0,9.999e-05,2]
[342558111,1731964232728,-500.0,9.999e-05,2]
[342558113,1731964232737,-500.0,9.999e-05,2]
[342558115,1731964232746,-500.0,9.999e-05,2]
[342558117,1731964232755,-500.0,9.999e-05,2]
[342558119,1731964232764,-164393.25040688,0.0001,2]
[342558121,1731964232773,-4580.79191891,0.0001,2]
[342558123,1731964232782,-39391.06695478,0.0001,2]
[342558125,1731964232791,-39391.0669547,0.0001,2]
[342558127,1731964232801,-39391.0669547,0.0001,2]
[342558129,1731964232810,-39391.0669547,0.0001,2]
[342558131,1731964232819,-39391.0669547,0.0001,2]
[342558133,1731964232828,-39391.0669547,0.0001,2]
[342558135,1731964232838,-39391.0669547,0.0001,2]
[342558137,1731964232847,-39391.0669547,0.0001,2]
[342558139,1731964232856,-39391.0669547,0.0001,2]
[342558140,1731964232865,-1223122.53365108,0.0001,2]
[342558143,1731964232879,-783741.72666915,0.0001,2]
[342558145,1731964232890,-33535.03014202,0.0001,2]
[342558147,1731964232901,-30143.2718938,0.0001,2]
[342558151,1731964232930,-2321.82179632,0.0001,2]
[342558153,1731964232941,-365.19994533,0.0001,2]
[342558156,1731964232956,-8802.34926338,0.0001,2]
[342558489,1731964237686,-500.0,9.999e-05,2]
[342558490,1731964237696,-500.0,9.999e-05,2]
[342558491,1731964237709,-500.0,9.999e-05,2]
[342558492,1731964237719,-190.39688739,9.999e-05,2]
[342558493,1731964237728,-27231.12763785,0.0001,2]
[342558494,1731964237740,-1591.8957099,0.0001,2]
[342558495,1731964237752,-1421.35148334,0.0001,2]
[342558496,1731964237764,-952.91,0.0001,2]
[342558497,1731964237799,-1564.1663984,0.0001,2]
[342558498,1731964237915,-4036.45302945,0.0001,2]
[342558499,1731964238031,-2762.3937311,0.0001,2]
[342558507,1731964239604,-1432.836,0.0001,2]
[342558508,1731964239718,-9005.9276188,0.0001,2]
[342558509,1731964239776,-1307.43813567,0.0001,2]
[342558510,1731964239788,-31609.97295768,0.0001,2]
[342558521,1731964242647,-1643.36546889,0.0001,2]
[342558522,1731964242658,-3050.68462594,0.0001,2]
[342558523,1731964242670,-2240.91209739,0.0001,2]
[342558524,1731964242766,-220432.096403,0.0001,2]
[342558525,1731964242777,-3014.85066305,0.0001,2]
[342558526,1731964242789,-2991.81300365,0.0001,2]
[342558527,1731964242800,-3010.25015456,0.0001,2]
[342558528,1731964242810,-1343.54097423,0.0001,2]
[342558529,1731964242828,-199802.76399526,0.0001,2]
[342558530,1731964242839,-90741.2679516,0.0001,2]
[342558537,1731964245931,-449.15307281,0.0001,2]
[342558538,1731964245942,-455.25,0.0001,2]
[342558539,1731964246002,-262.54085063,0.0001,2]
[342558540,1731964246013,-1683.02686254,0.0001,2]
[342558541,1731964246023,-610.54517073,0.0001,2]
[342558542,1731964246051,-22094.03308491,0.0001,2]
[342558544,1731964246062,-803.604,0.0001,2]
[342558545,1731964246079,-634.68,0.0001,2]
[342558547,1731964516895,778.26,8.219e-05,2]
[342558556,1731965231523,739.34,8.219e-05,2]
[342558671,1731965431842,-2028.08171942,9.004e-05,2]
[342558672,1731965431855,-594.70058894,9.004e-05,2]
[342558673,1731965431867,-60.79769164,9.004e-05,2]
[342558674,1731965431876,-1000.0,9.011e-05,2]
[342558675,1731965431886,-284.51,9.062e-05,2]
[342558676,1731965431895,-300.0,9.062e-05,2]
[342558677,1731965431905,-250.0,9.081e-05,2]
[342558678,1731965431914,-250.0,9.081e-05,2]
[342558679,1731965431926,-253.39140492,9.085e-05,2]
[342558680,1731965431946,-11.75859508,9.085e-05,2]
[342558681,1731965431955,-320.41264665,9.105e-05,2]
[342558682,1731965431975,-1866.47148544,9.105e-05,2]
[342558683,1731965432029,-1141.39586791,9.105e-05,2]
[342558684,1731965432038,-250.0,9.124e-05,2]
[342558685,1731965432047,-2000.0,9.148e-05,2]
[342558686,1731965432057,-627.1,9.157e-05,2]
[342558687,1731965432067,-166.49,9.226e-05,2]
[342558688,1731965432076,-1867.0,9.7e-05,2]
[342558689,1731965432085,-1000.0,9.8e-05,2]
[342558690,1731965432095,-1000.0,9.8e-05,2]
[342558691,1731965432105,-1750.1539,9.899e-05,2]
[342558692,1731965432114,-150.0,9.899e-05,2]
[342558693,1731965432124,-11013.9759,9.9e-05,2]
[342558694,1731965432133,-2277.5201,9.9e-05,2]
[342558695,1731965432142,-6846.1123,9.9e-05,2]
[342558696,1731965432152,-158332.36155907,9.9e-05,2]
[342558697,1731965432161,-552.18563072,9.9e-05,2]
[342558698,1731965432173,-552.18563071,9.9e-05,2]
[342558699,1731965432192,-500.0,9.919e-05,2]
[342558700,1731965432204,-500.0,9.92e-05,2]
[342558701,1731965432214,-500.0,9.973e-05,2]
[342558702,1731965432224,-1292.7435312,9.991e-05,2]
[342558703,1731965432234,-2037.7184629,9.991e-05,2]
[342558704,1731965432244,-500.0,9.992e-05,2]
[342558705,1731965432254,-500.0,9.992e-05,2]
[342558706,1731965432264,-1104.2122723,9.993e-05,2]
[342558707,1731965432274,-13375.50692106,9.993e-05,2]
[342558708,1731965432284,-1741.7288902,9.993e-05,2]
[342558709,1731965432293,-1251.26,9.998e-05,2]
[342558711,1731965432303,-229.21757163,9.999e-05,2]
[342558713,1731965432313,-500.0,9.999e-05,2]
[342558715,1731965432322,-500.0,9.999e-05,2]
[342558717,1731965432332,-500.0,9.999e-05,2]
[342558718,1731965432342,-336.32874625,9.999e-05,2]
[342558719,1731965432352,-1500.0,9.999e-05,2]
[342558720,1731965432362,-416.94167203,9.999e-05,2]
[342558721,1731965432371,-529.58,9.999e-05,2]
[342558722,1731965432381,-500.0,9.999e-05,2]
[342558723,1731965432390,-500.0,9.999e-05,2]
[342558724,1731965432401,-502.52604571,9.999e-05,2]
[342558725,1731965432410,-546.49737246,9.999e-05,2]
[342558726,1731965432422,-500.0,9.999e-05,2]
[342558727,1731965432432,-500.0,9.999e-05,2]
[342558728,1731965432442,-500.0,9.999e-05,2]
[342558729,1731965432452,-500.0,9.999e-05,2]
[342558730,1731965432462,-454.50005003,9.999e-05,2]
[342558731,1731965432471,-500.0,9.999e-05,2]
[342558732,1731965432480,-500.0,9.999e-05,2]
[342558733,1731965432490,-500.0,9.999e-05,2]
[342558734,1731965432499,-500.0,9.999e-05,2]
[342558735,1731965432508,-615.01586229,9.999e-05,2]
[342558736,1731965432517,-500.0,9.999e-05,2]
[342558737,1731965432527,-500.0,9.999e-05,2]
[342558738,1731965432536,-500.0,9.999e-05,2]
[342558739,1731965432546,-622.88,9.999e-05,2]
[342558740,1731965432556,-500.0,9.999e-05,2]
[342558741,1731965432566,-495.9012257,9.999e-05,2]
[342558742,1731965432575,-500.0,9.999e-05,2]
[342558743,1731965432585,-500.0,9.999e-05,2]
[342558744,1731965432594,-175425.6290245,0.0001,2]
[342558745,1731965432603,-4533.7435466,0.0001,2]
[342558746,1731965432613,-3939.10669547,0.0001,2]
[342558747,1731965432622,-3939.10669547,0.0001,2]
[342558748,1731965432631,-3939.10669547,0.0001,2]
[342558749,1731965432641,-2755.63757748,0.0001,2]
[342558750,1731965432654,-1183.46911799,0.0001,2]
[342558751,1731965432664,-417.57955825,0.0001,2]
[342558752,1731965432679,-1342.42776,0.0001,2]
[342558753,1731965432690,-1300.0,0.0001,2]
[342558754,1731965432701,-879.09937722,0.0001,2]
[342558755,1731965432710,-2209.63825828,0.0001,2]
[342558756,1731965432722,-1695.501234,0.0001,2]
[342558757,1731965432747,-33.96720319,0.0001,2]
[342558758,1731965432757,-3939.10669547,0.0001,2]
[342558759,1731965432767,-1452.0361972,0.0001,2]
[342558760,1731965432797,-591.92852923,0.0001,2]
[342558761,1731965432808,-1895.14196904,0.0001,2]
[342558762,1731965432818,-3939.10669547,0.0001,2]
[342558763,1731965432828,-5373.67130519,0.0001,2]
[342558764,1731965432839,-495.72833055,0.0001,2]
[342558766,1731965437801,-3353.94450525,0.0001,2]
[342558767,1731965437820,-91777.0,0.0001,2]
[342558768,1731965437904,-254.38578374,0.0001,2]
[342558769,1731965437915,-272.3515614,0.0001,2]
[342558770,1731965437929,-358.25525666,0.0001,2]
[342558771,1731965437939,-461.87499882,0.0001,2]
[342558772,1731965437986,-1380.94,0.0001,2]
[342558773,1731965437999,-3496841.56873141,0.0001,2]
[342558774,1731965438070,-4468.30632174,0.0001,2]
[342558775,1731965438082,-4735.87429009,0.0001,2]
[342558776,1731965438094,-5516.86087348,0.0001,2]
[342558777,1731965438106,-280.75704129,0.0001,2]
[342558778,1731965438158,-3224.37963184,0.0001,2]
[342558813,1731965439833,-898.95103294,9.8e-05,2]
[342558814,1731965439845,-101.04896706,9.8e-05,2]
[342558815,1731965439855,-5270.89933843,0.0001,2]
[342558816,1731965439867,-2219.74021644,0.0001,2]
[342558817,1731965439880,-11442.45491115,0.0001,2]
[342558818,1731965441710,-500.0,9.999e-05,2]
[342558819,1731965441720,-3870.38806764,0.0001,2]
[342558820,1731965441734,-642.97607776,0.0001,2]
[342558821,1731965441745,-1139.22878096,0.0001,2]
[342558822,1731965441756,-952.47687904,0.0001,2]
[342558823,1731965441791,-1524.17564455,0.0001,2]
[342558824,1731965441802,-414844.92588549,0.0001,2]
[342558825,1731965441814,-8782.5,0.0001,2]
[342558827,1731965441826,-9178.7,0.0001,2]
[342558828,1731965441837,-2306.86214912,0.0001,2]
[342558831,1731965441850,-12790.10670477,0.0001,2]
[342558833,1731965441860,-1808.0848899,0.0001,2]
[342558835,1731965441871,-500.0,0.0001,2]
[342558848,1731965442810,-1069.38465291,0.0001,2]
[342558849,1731965442823,-5979.69200007,0.0001,2]
[342558850,1731965442902,-70168.25916464,0.0001,2]
[342558851,1731965442914,-91965.0,0.0001,2]
[342558852,1731965443000,-643.08396958,0.0001,2]
[342558853,1731965443013,-375.21437384,0.0001,2]
[342558854,1731965443025,-6258.55793435,0.0001,2]
[342558855,1731965443036,-1070.37044303,0.0001,2]
[342558856,1731965443047,-225432.096403,0.0001,2]
[342558857,1731965443084,-4540.0,0.0001,2]
[342558858,1731965443095,-35020.2767191,0.0001,2]
[342558859,1731965443107,-1269.628188,0.0001,2]
[342558867,1731965445958,-150.0,9.904e-05,2]
[342558868,1731965445967,-12949.57614949,0.0001,2]
[342558869,1731965445978,-9426.886914,0.0001,2]
[342558870,1731965445990,-498.74334112,0.0001,2]
[342558871,1731965446002,-6417.7600647,0.0001,2]
[342558872,1731965446013,-379.71008372,0.0001,2]
[342558873,1731965446026,-1104.89183922,0.0001,2]
[342558874,1731965446036,-34786.73972013,0.0001,2]
[342558875,1731965446065,-682.6571336,0.0001,2]
[342558876,1731965446076,-797.50039743,0.0001,2]
[342558877,1731965446149,-33231.33035784,0.0001,2]
[342558878,1731965446160,-1657.21148328,0.0001,2]
[342558881,1731965983504,702.37,8.219e-05,2]
[342558884,1731966440483,1200.0,8e-05,2]
[342558885,1731966442598,2400.0,8.1e-05,2]
[342558886,1731966444800,3700.0,8.2e-05,2]
[342558887,1731966446939,4900.0,8.3e-05,3]
[342558888,1731966449080,6200.0,8.4e-05,3]
[342558889,1731966451211,1200.0,8.5e-05,3]
[342558919,1731966631987,-1200.0,8.6e-05,3]
[342558920,1731966631997,-435.4878737,8.7e-05,3]
[342558921,1731966632126,-764.5121263,8.7e-05,3]
[342558922,1731966632135,-93.5378737,8.8e-05,3]
[342558923,1731966632147,-250.0,8.8e-05,3]
[342558924,1731966632161,-856.4621263,8.8e-05,3]
[342558925,1731966632170,-1604.0,8.9e-05,3]
[342558926,1731966632179,-250.0,9.006e-05,2]
[342558927,1731966632189,-1000.0,9.03e-05,2]
[342558928,1731966632199,-200.0,9.039e-05,2]
[342558929,1731966632209,-4926.0,9.126e-05,2]
[342558930,1731966632219,-167.76,9.449e-05,2]
[342558931,1731966632228,-500.0,9.473e-05,2]
[342558932,1731966632240,-150.0,9.479e-05,2]
[342558933,1731966632249,-150.0,9.499e-05,2]
[342558934,1731966632258,-2296.58427392,9.5e-05,2]
[342558935,1731966632270,-7077.38677632,9.5e-05,2]
[342558936,1731966632281,-41079.71926795,9.5e-05,2]
[342558937,1731966632297,-6061.60340638,9.5e-05,2]
[342558938,1731966632308,-379.99999,9.5e-05,2]
[342558939,1731966632320,-285.29701288,9.5e-05,2]
[342558940,1731966632359,-1745560.65839332,9.5e-05,2]
[342558941,1731966632370,-679520.33453058,9.5e-05,2]
[342558942,1731966632382,-5417.00955669,9.5e-05,2]
[342559001,1731966638104,-397.16,9.5e-05,2]
[342559002,1731966638223,-43288674.60679196,9.5e-05,2]
[342559003,1731966638233,-498.32,9.756e-05,2]
[342559004,1731966638243,-7233.8466,9.8e-05,2]
[342559005,1731966638256,-1000.0,9.8e-05,2]
[342559006,1731966638268,-1397.9343,9.8e-05,2]
[342559007,1731966638277,-1488.295,9.8e-05,2]
[342559008,1731966638287,-575.8879764,9.863e-05,2]
[342559009,1731966638296,-546.02,9.863e-05,2]
[342559010,1731966638306,-500.0,9.863e-05,2]
[342559011,1731966638316,-613.64,9.863e-05,2]
[342559012,1731966638325,-500.0,9.863e-05,2]
[342559013,1731966638335,-500.0,9.863e-05,2]
[342559014,1731966638345,-500.0,9.863e-05,2]
[342559015,1731966638354,-500.0,9.863e-05,2]
[342559016,1731966638364,-233.50009708,9.863e-05,2]
[342559017,1731966638374,-399.41115174,9.863e-05,2]
[342559018,1731966638384,-500.0,9.863e-05,2]
[342559019,1731966638394,-500.0,9.863e-05,2]
[342559020,1731966638404,-150.73,9.863e-05,2]
[342559021,1731966638414,-500.0,9.863e-05,2]
[342559022,1731966638423,-468.31,9.863e-05,2]
[342559023,1731966638432,-500.0,9.863e-05,2]
[342559024,1731966638441,-500.0,9.863e-05,2]
[342559025,1731966638450,-500.0,9.863e-05,2]
[342559026,1731966638460,-500.0,9.863e-05,2]
[342559027,1731966638470,-500.0,9.863e-05,2]
[342559028,1731966638480,-500.0,9.863e-05,2]
[342559029,1731966638489,-263.06,9.863e-05,2]
[342559030,1731966638502,-500.0,9.863e-05,2]
[342559031,1731966638512,-500.0,9.863e-05,2]
[342559032,1731966638521,-500.0,9.863e-05,2]
[342559033,1731966638530,-500.0,9.863e-05,2]
[342559034,1731966638539,-240.47,9.863e-05,2]
[342559035,1731966638548,-245.35412516,9.863e-05,2]
[342559036,1731966638558,-334.87000001,9.863e-05,2]
[342559037,1731966638568,-500.0,9.863e-05,2]
[342559038,1731966638577,-252.47,9.863e-05,2]
[342559039,1731966638587,-500.0,9.863e-05,2]
[342559040,1731966638597,-500.0,9.863e-05,2]
[342559041,1731966638606,-635.8287743,9.863e-05,2]
[342559042,1731966638616,-500.0,9.863e-05,2]
[342559043,1731966638625,-500.0,9.863e-05,2]
[342559044,1731966638635,-500.0,9.863e-05,2]
[342559045,1731966638644,-500.0,9.863e-05,2]
[342559047,1731966638654,-500.0,9.863e-05,2]
[342559049,1731966638664,-500.0,9.863e-05,2]
[342559051,1731966638673,-500.0,9.863e-05,2]
[342559053,1731966638682,-500.0,9.863e-05,2]
[342559055,1731966638691,-500.0,9.863e-05,2]
[342559057,1731966638700,-500.0,9.863e-05,2]
[342559059,1731966638709,-500.0,9.863e-05,2]
[342559061,1731966638720,-500.0,9.863e-05,2]
[342559063,1731966638730,-500.0,9.863e-05,2]
[342559065,1731966638739,-552.33,9.863e-05,2]
[342559067,1731966638752,-552.33,9.863e-05,2]
[342559069,1731966638761,-552.33,9.863e-05,2]
[342559071,1731966638771,-500.0,9.863e-05,2]
[342559073,1731966638780,-552.33,9.863e-05,2]
[342559075,1731966638789,-504.8,9.863e-05,2]
[342559077,1731966638798,-552.33,9.863e-05,2]
[342559079,1731966638807,-552.33,9.863e-05,2]
[342559081,1731966638816,-552.33,9.863e-05,2]
[342559083,1731966638826,-552.33,9.863e-05,2]
[342559085,1731966638835,-552.33,9.863e-05,2]
[342559087,1731966638844,-552.33,9.863e-05,2]
[342559089,1731966638853,-552.33,9.863e-05,2]
[342559091,1731966638862,-552.33,9.863e-05,2]
[342559093,1731966638872,-552.33,9.863e-05,2]
[342559095,1731966638882,-552.33,9.863e-05,2]
[342559097,1731966638891,-500.0,9.863e-05,2]
[342559099,1731966638901,-552.33,9.863e-05,2]
[342559101,1731966638909,-500.0,9.863e-05,2]
[342559103,1731966638919,-552.33,9.863e-05,2]
[342559105,1731966638928,-552.33,9.863e-05,2]
[342559107,1731966638938,-552.33,9.863e-05,2]
[342559109,1731966638947,-552.33,9.863e-05,2]
[342559111,1731966638957,-552.33,9.863e-05,2]
[342559113,1731966638967,-552.33,9.863e-05,2]
[342559115,1731966638976,-552.33,9.863e-05,2]
[342559117,1731966638985,-552.33,9.863e-05,2]
[342559119,1731966638996,-552.33,9.863e-05,2]
[342559121,1731966639006,-500.0,9.863e-05,2]
[342559122,1731966639015,-500.0,9.863e-05,2]
[342559124,1731966639025,-500.0,9.863e-05,2]
[342559126,1731966639034,-500.0,9.863e-05,2]
[342559128,1731966639044,-500.0,9.863e-05,2]
[342559130,1731966639054,-500.0,9.863e-05,2]
[342559132,1731966639063,-337.64,9.863e-05,2]
[342559134,1731966639073,-500.0,9.863e-05,2]
[342559136,1731966639083,-500.0,9.863e-05,2]
[342559139,1731966639093,-500.0,9.863e-05,2]
[342559141,1731966639103,-500.0,9.863e-05,2]
[342559142,1731966639115,-500.0,9.863e-05,2]
[342559145,1731966639126,-500.0,9.863e-05,2]
[342559146,1731966639135,-612.28,9.863e-05,2]
[342559149,1731966639146,-500.0,9.863e-05,2]
[342559151,1731966639158,-500.0,9.863e-05,2]
[342559152,1731966639167,-354.24,9.863e-05,2]
[342559155,1731966639176,-500.0,9.863e-05,2]
[342559156,1731966639188,-500.0,9.863e-05,2]
[342559158,1731966639197,-500.0,9.863e-05,2]
[342559160,1731966639207,-562.34,9.863e-05,2]
[342559162,1731966639216,-500.0,9.863e-05,2]
[342559164,1731966639225,-500.0,9.863e-05,2]
[342559166,1731966639234,-500.0,9.863e-05,2]
[342559168,1731966639245,-500.0,9.863e-05,2]
[342559170,1731966639254,-500.0,9.863e-05,2]
[342559172,1731966639263,-500.0,9.863e-05,2]
[342559174,1731966639273,-500.0,9.863e-05,2]
[342559176,1731966639283,-500.0,9.863e-05,2]
[342559178,1731966639292,-500.0,9.863e-05,2]
[342559180,1731966639302,-500.0,9.863e-05,2]
[342559182,1731966639311,-500.0,9.863e-05,2]
[342559184,1731966639320,-500.0,9.863e-05,2]
[342559186,1731966639330,-500.0,9.863e-05,2]
[342559188,1731966639339,-500.0,9.863e-05,2]
[342559190,1731966639348,-320.17251372,9.863e-05,2]
[342559192,1731966639358,-500.0,9.863e-05,2]
[342559194,1731966639368,-500.0,9.863e-05,2]
[342559196,1731966639377,-500.0,9.863e-05,2]
[342559198,1731966639387,-500.0,9.863e-05,2]
[342559200,1731966639397,-500.0,9.863e-05,2]
[342559202,1731966639406,-500.0,9.863e-05,2]
[342559204,1731966639416,-500.0,9.863e-05,2]
[342559206,1731966639426,-500.0,9.863e-05,2]
[342559208,1731966639435,-181.74,9.863e-05,2]
[342559210,1731966639444,-2683.3948,9.9e-05,2]
[342559212,1731966639454,-500.0,9.92e-05,2]
[342559214,1731966639464,-175.784,9.983e-05,2]
[342559216,1731966639473,-500.0,9.992e-05,2]
[342559218,1731966639482,-350.15481707,9.992e-05,2]
[342559220,1731966639491,-500.0,9.992e-05,2]
[342559222,1731966639502,-500.0,9.992e-05,2]
[342559224,1731966639511,-500.0,9.992e-05,2]
[342559226,1731966639521,-987.0533412,9.992e-05,2]
[342559228,1731966639531,-711.6467225,9.992e-05,2]
[342559230,1731966639540,-449.6008824,9.992e-05,2]
[342559232,1731966639549,-843.1033585,9.993e-05,2]
[342559234,1731966639558,-694.1226891,9.993e-05,2]
[342559236,1731966639568,-438.5296294,9.993e-05,2]
[342559238,1731966639577,-257.60515579,9.999e-05,2]
[342559240,1731966639586,-2591.53193525,9.999e-05,2]
[342559242,1731966639596,-500.0,9.999e-05,2]
[342559244,1731966639605,-1500.0,9.999e-05,2]
[342559246,1731966639614,-500.0,9.999e-05,2]
[342559247,1731966639623,-500.0,9.999e-05,2]
[342559249,1731966639633,-500.0,9.999e-05,2]
[342559251,1731966639643,-500.0,9.999e-05,2]
[342559253,1731966639652,-510.77,9.999e-05,2]
[342559255,1731966639662,-500.0,9.999e-05,2]
[342559257,1731966639671,-500.0,9.999e-05,2]
[342559259,1731966639681,-500.0,9.999e-05,2]
[342559261,1731966639690,-573.25,9.999e-05,2]
[342559263,1731966639699,-412.86,9.999e-05,2]
[342559264,1731966639708,-500.0,9.999e-05,2]
[342559265,1731966639717,-500.0,9.999e-05,2]
[342559266,1731966639726,-500.0,9.999e-05,2]
[342559267,1731966639735,-500.0,9.999e-05,2]
[342559268,1731966639744,-500.0,9.999e-05,2]
[342559269,1731966639753,-500.0,9.999e-05,2]
[342559270,1731966639762,-500.0,9.999e-05,2]
[342559271,1731966639771,-589.75,9.999e-05,2]
[342559272,1731966639781,-500.0,9.999e-05,2]
[342559273,1731966639790,-500.0,9.999e-05,2]
[342559274,1731966639799,-500.0,9.999e-05,2]
[342559276,1731966639808,-506.06,9.999e-05,2]
[342559278,1731966639817,-501.85388254,9.999e-05,2]
[342559279,1731966639826,-500.0,9.999e-05,2]
[342559282,1731966639836,-500.0,9.999e-05,2]
[342559284,1731966639845,-500.0,9.999e-05,2]
[342559286,1731966639854,-500.0,9.999e-05,2]
[342559288,1731966639863,-500.0,9.999e-05,2]
[342559289,1731966639872,-500.0,9.999e-05,2]
[342559291,1731966639882,-500.0,9.999e-05,2]
[342559294,1731966639891,-500.0,9.999e-05,2]
[342559296,1731966639900,-500.0,9.999e-05,2]
[342559298,1731966639908,-500.0,9.999e-05,2]
[342559300,1731966639918,-500.0,9.999e-05,2]
[342559302,1731966639927,-500.0,9.999e-05,2]
[342559304,1731966639936,-500.0,9.999e-05,2]
[342559306,1731966639945,-500.0,9.999e-05,2]
[342559308,1731966639954,-500.0,9.999e-05,2]
[342559310,1731966639964,-500.0,9.999e-05,2]
[342559312,1731966639973,-500.0,9.999e-05,2]
[342559314,1731966639983,-500.0,9.999e-05,2]
[342559315,1731966639995,-333.36,9.999e-05,2]
[342559317,1731966640005,-500.0,9.999e-05,2]
[342559319,1731966640014,-500.0,9.999e-05,2]
[342559321,1731966640023,-500.0,9.999e-05,2]
[342559322,1731966640032,-500.0,9.999e-05,2]
[342559324,1731966640041,-500.0,9.999e-05,2]
[342559325,1731966640050,-500.0,9.999e-05,2]
[342559326,1731966640059,-500.0,9.999e-05,2]
[342559327,1731966640068,-500.0,9.999e-05,2]
[342559328,1731966640077,-500.0,9.999e-05,2]
[342559329,1731966640087,-500.0,9.999e-05,2]
[342559330,1731966640096,-500.0,9.999e-05,2]
[342559331,1731966640105,-500.0,9.999e-05,2]
[342559332,1731966640119,-500.0,9.999e-05,2]
[342559333,1731966640129,-500.0,9.999e-05,2]
[342559334,1731966640139,-500.0,9.999e-05,2]